bitfinex/quotes_BTCUSD_20240828
["timestamp","ask_amount","ask_price","bid_price","bid_amount"]
[1724821366132,0.05487053,59466.0,59465.0,0.25422717]
[1724821367651,0.15483877,59466.0,59465.0,0.25422717]
[1724821368063,0.05487053,59466.0,59465.0,0.25422717]
[1724821369182,0.15566181,59466.0,59465.0,0.25422717]
[1724821369417,0.05568853,59466.0,59465.0,0.25422717]
[1724821369660,0.1556618,59466.0,59465.0,0.25422717]
[1724821369910,0.05568853,59466.0,59465.0,0.25422717]
[1724821370376,0.15566063,59466.0,59465.0,0.25422717]
[1724821370602,0.15566097,59466.0,59465.0,0.25422717]
[1724821371062,0.15566274,59466.0,59465.0,0.25422717]
[1724821371302,0.1806563,59466.0,59465.0,0.25422717]
[1724821371770,0.15567017,59466.0,59465.0,0.25422717]
[1724821372039,0.15067017,59466.0,59465.0,0.25422717]
[1724821374554,0.05068853,59466.0,59465.0,0.25422717]
[1724821375067,0.05068853,59466.0,59465.0,0.03922717]
[1724821376144,0.05068853,59466.0,59465.0,0.00029816]
[1724821376354,0.35106288,59466.0,59465.0,0.00029816]
[1724821379442,0.22608853,59466.0,59465.0,0.00029816]
[1724821380945,0.05068853,59466.0,59465.0,0.00029816]
[1724821384791,0.26218853,59466.0,59465.0,0.00029816]
[1724821385022,0.44708853,59466.0,59465.0,0.00029816]
[1724821385272,0.56469811,59466.0,59465.0,0.00029816]
[1724821386847,0.68235009,59466.0,59465.0,0.00029816]
[1724821389626,0.65937009,59466.0,59465.0,0.00029816]
[1724821389843,1.33027954,59466.0,59465.0,0.00029816]
[1724821390013,1.66660554,59466.0,59465.0,0.00029816]
[1724821393037,1.69298787,59466.0,59465.0,0.00029816]
[1724821393278,2.02931387,59466.0,59465.0,0.00029816]
[1724821393512,1.69298787,59466.0,59465.0,0.00029816]
[1724821393759,2.05731387,59466.0,59465.0,0.00029816]
[1724821393995,2.56219151,59466.0,59465.0,0.00029816]
[1724821394226,2.39363987,59466.0,59465.0,0.00029816]
[1724821394491,1.119083,59459.0,59458.0,0.0008998]
[1724821394716,1.119083,59459.0,59451.0,0.0004]
[1724821394717,0.82600213,59452.0,59451.0,0.0004]
[1724821394949,2.20691254,59452.0,59451.0,0.0004]
[1724821395195,2.66631754,59452.0,59451.0,0.0004]
[1724821395406,2.57855863,59452.0,59451.0,0.0004]
[1724821395610,2.69621061,59452.0,59451.0,0.0004]
[1724821396337,2.86476225,59452.0,59451.0,0.0004]
[1724821396564,2.57855863,59452.0,59451.0,0.0004]
[1724821396762,2.69621061,59452.0,59451.0,0.0004]
[1724821400609,2.71382019,59452.0,59451.0,0.0004]
[1724821403754,2.68743151,59452.0,59451.0,0.0012998]
[1724821405182,2.75493151,59452.0,59451.0,0.0012998]
[1724821408235,1.89696953,59452.0,59451.0,0.0012998]
[1724821408407,2.35102651,59452.0,59451.0,0.0012998]
[1724821409469,2.51957815,59452.0,59451.0,0.0012998]
[1724821409879,2.85598315,59452.0,59451.0,0.0012998]
[1724821410093,3.03269323,59452.0,59451.0,0.0012998]
[1724821413376,2.52773659,59452.0,59451.0,0.0012998]
[1724821413675,2.55412724,59452.0,59451.0,0.0012998]
[1724821414003,2.89053224,59452.0,59451.0,0.0012998]
[1724821416466,2.89032982,59452.0,59451.0,0.0012998]
[1724821417840,2.55392482,59452.0,59451.0,0.0012998]
[1724821418876,2.21751982,59452.0,59451.0,0.0012998]
[1724821419079,2.55392482,59452.0,59451.0,0.0012998]
[1724821419482,2.21751982,59452.0,59451.0,0.0012998]
[1724821419688,1.88111482,59452.0,59451.0,0.0012998]
[1724821419834,1.87611482,59452.0,59451.0,0.0012998]
[1724821420039,1.88786482,59452.0,59451.0,0.0012998]
[1724821420475,2.22426982,59452.0,59451.0,0.0012998]
[1724821420676,1.88786482,59452.0,59451.0,0.0012998]
[1724821420897,1.32376282,59452.0,59451.0,0.0012998]
[1724821421110,0.99465076,59452.0,59451.0,0.2304998]
[1724821421248,0.99465076,59452.0,59451.0,0.0012998]
[1724821421752,1.85771482,59452.0,59451.0,0.0012998]
[1724821421902,2.19411982,59452.0,59451.0,0.0012998]
[1724821422518,2.21711982,59452.0,59451.0,0.0012998]
[1724821423080,2.55352482,59452.0,59451.0,0.0012998]
[1724821428433,2.88992982,59452.0,59451.0,0.0012998]
[1724821428853,2.55352482,59452.0,59451.0,0.0012998]
[1724821429587,2.88992982,59452.0,59451.0,0.0012998]
[1724821429802,1.73805771,59446.0,59445.0,0.000118]
[1724821430022,2.5182052,59446.0,59445.0,0.000118]
[1724821430217,2.03247077,59440.0,59439.0,0.008998]
[1724821430594,2.34976016,59440.0,59439.0,0.008998]
[1724821430782,2.35298735,59440.0,59439.0,0.008998]
[1724821431423,1.27273539,59440.0,59439.0,0.008998]
[1724821431628,1.44097139,59440.0,59439.0,0.008998]
[1724821431831,1.46718263,59440.0,59439.0,0.008998]
[1724821432065,1.12253049,59440.0,59439.0,0.008998]
[1724821432480,1.11753049,59440.0,59439.0,0.008998]
[1724821433111,0.99976674,59440.0,59439.0,0.008998]
[1724821433364,1.09453049,59440.0,59439.0,0.008998]
[1724821433570,1.26258432,59440.0,59439.0,0.008998]
[1724821433983,1.09453049,59440.0,59439.0,0.008998]
[1724821434415,1.34503049,59440.0,59439.0,0.008998]
[1724821434622,1.51326649,59440.0,59439.0,0.008998]
[1724821435292,1.34503049,59440.0,59439.0,0.008998]
[1724821435749,1.51326649,59440.0,59439.0,0.008998]
[1724821435988,1.69536649,59440.0,59439.0,0.008998]
[1724821436212,1.87205759,59440.0,59439.0,0.008998]
[1724821436886,2.20853059,59440.0,59439.0,0.008998]
[1724821437133,1.70382159,59440.0,59439.0,0.008998]
[1724821437730,1.69882159,59440.0,59439.0,0.008998]
[1724821438351,1.45332159,59440.0,59439.0,0.008998]
[1724821439379,1.69879562,59440.0,59439.0,0.008998]
[1724821439585,1.45332159,59440.0,59439.0,0.008998]
[1724821439811,1.51669562,59440.0,59439.0,0.008998]
[1724821440017,1.27122159,59440.0,59439.0,0.008998]
[1724821440465,1.68402159,59440.0,59439.0,0.008998]
[1724821440669,1.92949562,59440.0,59439.0,0.008998]
[1724821441106,1.85225759,59440.0,59439.0,0.008998]
[1724821441519,1.68402159,59440.0,59439.0,0.008998]
[1724821441732,1.85225759,59440.0,59439.0,0.008998]
[1724821442582,1.44542159,59440.0,59439.0,0.008998]
[1724821442804,0.97676674,59440.0,59439.0,0.008998]
[1724821443006,1.22270232,59440.0,59439.0,0.008998]
[1724821443862,0.97676674,59440.0,59439.0,0.008998]
[1724821445872,0.97676674,59440.0,59439.0,0.222698]
[1724821447567,0.97676674,59440.0,59439.0,0.2449678]
[1724821447774,0.97676674,59440.0,59439.0,0.2957678]
[1724821449161,0.47676674,59440.0,59439.0,0.2957678]
[1724821449620,0.47676674,59440.0,59439.0,0.273498]
[1724821450071,0.42676674,59440.0,59439.0,0.273498]
[1724821450294,0.47676674,59440.0,59439.0,0.222698]
[1724821450982,0.64538883,59440.0,59439.0,0.222698]
[1724821453057,0.47676674,59440.0,59439.0,0.222698]
[1724821453510,0.64537876,59440.0,59439.0,0.222698]
[1724821453988,0.47676674,59440.0,59439.0,0.222698]
[1724821454242,0.64537318,59440.0,59439.0,0.2500478]
[1724821454679,0.37457347,59440.0,59439.0,0.2500478]
[1724821454896,0.20596703,59440.0,59439.0,0.2500478]
[1724821457820,0.05596703,59440.0,59439.0,0.2500478]
[1724821458020,0.05596703,59440.0,59439.0,0.3008478]
[1724821458437,0.05576459,59440.0,59439.0,0.3008478]
[1724821459073,0.18064639,59440.0,59439.0,0.3008478]
[1724821460201,0.05576459,59440.0,59439.0,1.1420448]
[1724821460410,0.05576459,59440.0,59439.0,0.8055658]
[1724821460411,0.02639341,59440.0,59439.0,0.8055658]
[1724821460614,0.02962816,59440.0,59439.0,0.8055658]
[1724821460814,0.02639341,59440.0,59439.0,1.1420448]
[1724821461032,0.02639341,59440.0,59439.0,0.8055658]
[1724821462551,0.02639341,59440.0,59439.0,1.10002065]
[1724821462762,0.02639341,59440.0,59439.0,1.43649965]
[1724821462984,0.000818,59445.0,59444.0,0.168225]
[1724821463182,0.000818,59445.0,59444.0,0.5174029]
[1724821467406,0.000818,59445.0,59444.0,0.54261168]
[1724821467631,0.000818,59445.0,59444.0,0.87906268]
[1724821467841,0.000818,59445.0,59444.0,1.21551368]
[1724821468724,0.000818,59445.0,59444.0,1.24924368]
[1724821469048,0.000818,59445.0,59444.0,1.58569468]
[1724821470110,0.000818,59445.0,59444.0,1.59069468]
[1724821470457,0.0271976,59445.0,59444.0,1.61369468]
[1724821470807,0.000818,59452.0,59451.0,1.445338]
[1724821471007,0.000818,59452.0,59451.0,1.88819965]
[1724821471361,0.02719686,59452.0,59451.0,1.88819965]
[1724821471941,0.02719686,59452.0,59451.0,1.89319965]
[1724821472262,0.02719686,59452.0,59451.0,1.91619965]
[1724821472850,0.02719686,59452.0,59451.0,1.94992965]
[1724821474527,0.02719686,59452.0,59451.0,1.97480949]
[1724821476384,0.02719686,59452.0,59451.0,2.15230949]
[1724821482954,0.000818,59458.0,59457.0,1.106342]
[1724821483156,0.000818,59458.0,59457.0,1.54097279]
[1724821483597,0.0271954,59458.0,59457.0,1.54097279]
[1724821483776,0.0271954,59458.0,59457.0,1.87734979]
[1724821485535,0.0271954,59458.0,59457.0,1.58289494]
[1724821486259,0.0271954,59458.0,59457.0,1.78466497]
[1724821486458,0.0271954,59458.0,59457.0,1.60716497]
[1724821486604,0.0271954,59458.0,59457.0,1.90161982]
[1724821488972,0.000818,59466.0,59465.0,0.504498]
[1724821489195,0.000818,59466.0,59465.0,0.84083]
[1724821489410,0.000818,59466.0,59465.0,1.06853]
[1724821491097,0.000818,59466.0,59465.0,1.12173]
[1724821491466,0.01842758,59466.0,59465.0,1.12173]
[1724821491712,0.01842758,59466.0,59465.0,1.1990079]
[1724821492692,0.04480221,59466.0,59465.0,1.1990079]
[1724821492927,0.04480221,59466.0,59465.0,1.5353399]
[1724821495169,0.04480221,59466.0,59465.0,1.55958812]
[1724821495501,0.04480221,59466.0,59465.0,1.59831812]
[1724821495703,0.04480221,59466.0,59465.0,1.62131812]
[1724821495830,0.02719263,59466.0,59465.0,1.79881812]
[1724821496531,1e-08,59466.0,59465.0,2.13515012]
[1724821496937,0.01760958,59474.0,59473.0,1.059317]
[1724821497135,0.01760958,59474.0,59473.0,1.73640865]
[1724821497370,0.000818,59483.0,59481.0,0.504361]
[1724821497522,0.000818,59483.0,59481.0,0.840602]
[1724821498141,0.02718726,59482.0,59481.0,0.840602]
[1724821498761,0.02718726,59482.0,59481.0,1.066302]
[1724821498975,0.02718726,59482.0,59481.0,1.40697794]
[1724821499191,0.02718726,59482.0,59481.0,1.74321894]
[1724821499631,0.000818,59482.0,59481.0,1.74321894]
[1724821500273,0.000818,59482.0,59481.0,1.22447794]
[1724821500484,0.000818,59482.0,59481.0,0.64453694]
[1724821500709,0.000818,59482.0,59481.0,0.14017594]
[1724821500710,0.00418271,59482.0,59481.0,0.14017594]
[1724821500916,0.1713,59478.0,59472.0,0.03375]
[1724821501147,0.2129,59475.0,59465.0,0.0442352]
[1724821501354,0.2129,59473.0,59465.0,0.0442352]
[1724821501551,0.2129,59473.0,59466.0,0.03805752]
[1724821501771,0.1794,59472.0,59466.0,0.03805752]
[1724821502006,0.22344233,59471.0,59466.0,0.03805752]
[1724821502230,0.2201,59469.0,59465.0,0.0442352]
[1724821502655,0.00334233,59468.0,59465.0,0.0442352]
[1724821503077,0.3987,59467.0,59465.0,0.02]
[1724821503511,0.00334233,59466.0,59465.0,0.02]
[1724821504144,0.38674233,59466.0,59465.0,0.02]
[1724821504993,0.41311595,59466.0,59465.0,0.02]
[1724821507430,0.46311595,59466.0,59465.0,0.02]
[1724821507627,0.4894649,59466.0,59465.0,0.02]
[1724821509043,0.05,59459.0,59452.0,0.0008998]
[1724821509277,0.4454,59453.0,59452.0,0.0008998]
[1724821509906,0.42514919,59453.0,59452.0,0.0008998]
[1724821510112,0.47514919,59453.0,59452.0,0.0008998]
[1724821510225,0.60150452,59453.0,59452.0,0.0008998]
[1724821510877,0.60122373,59453.0,59452.0,0.0008998]
[1724821511085,0.42514919,59453.0,59452.0,0.0008998]
[1724821511532,0.39876513,59453.0,59452.0,0.0008998]
[1724821512210,0.00336513,59453.0,59452.0,0.0008998]
[1724821512428,0.00336513,59453.0,59452.0,0.19116178]
[1724821512542,0.1778,59457.0,59452.0,0.19116178]
[1724821512543,0.1778,59457.0,59452.0,0.02295978]
[1724821512880,0.1778,59457.0,59452.0,0.19116178]
[1724821513081,0.00327381,59456.0,59452.0,0.19116178]
[1724821513293,0.39410958,59462.0,59453.0,0.168198]
[1724821513470,0.00327381,59455.0,59454.0,0.06007658]
[1724821513677,0.39410958,59462.0,59454.0,0.06007658]
[1724821513882,0.00327381,59455.0,59454.0,0.06007658]
[1724821514064,0.02637951,59455.0,59454.0,0.06007658]
[1724821517531,0.02637951,59455.0,59452.0,0.02295978]
[1724821517532,0.41687951,59455.0,59452.0,0.02295978]
[1724821517737,0.2198,59454.0,59452.0,0.0008998]
[1724821517945,0.22309256,59454.0,59452.0,0.0008998]
[1724821521694,0.01729256,59454.0,59452.0,0.0018998]
[1724821521916,0.01729256,59454.0,59453.0,0.03906058]
[1724821522602,0.00329256,59454.0,59453.0,0.03906058]
[1724821523062,0.3839,59459.0,59453.0,0.03906058]
[1724821523508,0.02638009,59454.0,59453.0,0.03906058]
[1724821523714,0.03538009,59454.0,59453.0,0.03906058]
[1724821524029,0.02638009,59454.0,59453.0,0.0633823]
[1724821524987,0.02968367,59454.0,59453.0,0.0633823]
[1724821525199,0.03768367,59454.0,59453.0,0.0633823]
[1724821525627,0.02968367,59454.0,59453.0,0.0633823]
[1724821526255,0.02968367,59454.0,59453.0,0.0642821]
[1724821526919,0.03868367,59454.0,59453.0,0.0642821]
[1724821527132,0.02968367,59454.0,59453.0,0.0642821]
[1724821527367,0.03868367,59454.0,59453.0,0.0642821]
[1724821527790,0.02968367,59454.0,59453.0,0.0642821]
[1724821528218,0.25618367,59454.0,59453.0,0.0008998]
[1724821528514,0.40960358,59454.0,59453.0,0.0008998]
[1724821528736,0.41860358,59454.0,59453.0,0.0008998]
[1724821529864,0.40960358,59454.0,59453.0,0.0008998]
[1724821530106,0.43598592,59454.0,59453.0,0.0008998]
[1724821530329,0.44498592,59454.0,59453.0,0.0008998]
[1724821530789,0.45898592,59454.0,59453.0,0.0008998]
[1724821531243,0.44998592,59454.0,59453.0,0.0008998]
[1724821531461,0.46398592,59454.0,59453.0,0.0008998]
[1724821531913,0.4663183,59454.0,59453.0,0.0008998]
[1724821532551,0.4033,59453.0,59452.0,0.0008998]
[1724821532782,0.42965497,59453.0,59452.0,0.0008998]
[1724821533008,0.45859454,59453.0,59452.0,0.0008998]
[1724821533240,0.43527958,59453.0,59452.0,0.0008998]
[1724821533689,0.40892455,59453.0,59452.0,0.0008998]
[1724821533925,0.43527903,59453.0,59452.0,0.0008998]
[1724821534170,0.40892455,59453.0,59452.0,0.0008998]
[1724821534406,0.43527886,59453.0,59452.0,0.0008998]
[1724821534641,0.44927886,59453.0,59452.0,0.0008998]
[1724821534861,0.43527886,59453.0,59452.0,0.0008998]
[1724821535338,0.27079971,59449.0,59445.0,0.0008998]
[1724821535564,0.03056,59448.0,59445.0,0.0008998]
[1724821535791,0.2089,59446.0,59445.0,0.0008998]
[1724821536433,0.24075651,59446.0,59445.0,0.0008998]
[1724821536634,0.44591283,59446.0,59445.0,0.0008998]
[1724821536809,0.41955651,59446.0,59445.0,0.0008998]
[1724821537018,0.44591283,59446.0,59445.0,0.0008998]
[1724821537191,0.41955651,59446.0,59445.0,0.0008998]
[1724821537375,0.44591283,59446.0,59445.0,0.0008998]
[1724821537574,0.45991283,59446.0,59445.0,0.0008998]
[1724821537785,0.43355651,59446.0,59445.0,0.0008998]
[1724821539762,0.41955651,59446.0,59445.0,0.0008998]
[1724821540318,0.43355651,59446.0,59445.0,0.0008998]
[1724821540971,0.41955651,59446.0,59445.0,0.0008998]
[1724821541367,0.43355651,59446.0,59445.0,0.0008998]
[1724821541934,0.45991276,59446.0,59445.0,0.0008998]
[1724821542763,0.44591276,59446.0,59445.0,0.0008998]
[1724821542962,0.45991276,59446.0,59445.0,0.0008998]
[1724821543819,0.44591276,59446.0,59445.0,0.0008998]
[1724821544228,0.45991276,59446.0,59445.0,0.0008998]
[1724821546121,0.44591276,59446.0,59445.0,0.0008998]
[1724821546325,0.45991276,59446.0,59445.0,0.0008998]
[1724821546690,0.44591276,59446.0,59445.0,0.0008998]
[1724821547102,0.45991276,59446.0,59445.0,0.0008998]
[1724821547917,0.43355651,59446.0,59445.0,0.0008998]
[1724821551236,0.43335407,59446.0,59445.0,0.0008998]
[1724821551449,0.45096365,59446.0,59445.0,0.0008998]
[1724821552969,0.43696365,59446.0,59445.0,0.0008998]
[1724821553181,0.06346609,59446.0,59445.0,0.0008998]
[1724821554034,0.04946609,59446.0,59445.0,0.0008998]
[1724821554475,0.06346609,59446.0,59445.0,0.0008998]
[1724821555172,0.06346609,59446.0,59445.0,0.1691218]
[1724821555379,0.06346609,59446.0,59445.0,0.22696968]
[1724821555802,0.04585651,59446.0,59445.0,0.56341468]
[1724821556252,0.04038705,59446.0,59445.0,0.56341468]
[1724821556859,0.04038705,59446.0,59445.0,0.58832689]
[1724821557060,0.04038705,59446.0,59445.0,1.14077189]
[1724821557494,0.014,59446.0,59445.0,1.14077189]
[1724821558715,0.01842758,59453.0,59448.0,0.336422]
[1724821558951,0.01842758,59453.0,59450.0,0.168208]
[1724821559647,0.01842758,59453.0,59452.0,0.168202]
[1724821560058,0.02642758,59453.0,59452.0,0.504607]
[1724821560283,0.02642758,59453.0,59452.0,0.168202]
[1724821560563,0.01842758,59453.0,59452.0,0.168202]
[1724821560821,0.01842758,59453.0,59452.0,0.25866712]
[1724821561654,0.01842758,59453.0,59452.0,1.21457712]
[1724821562266,0.000818,59453.0,59452.0,1.21457712]
[1724821562476,0.007818,59453.0,59452.0,1.21457712]
[1724821562691,0.000818,59453.0,59452.0,1.21457712]
[1724821563146,0.006818,59453.0,59452.0,1.55098212]
[1724821563350,0.000818,59453.0,59452.0,1.57551243]
[1724821563774,0.005818,59453.0,59452.0,1.57551243]
[1724821564232,0.005818,59453.0,59452.0,1.23910743]
[1724821564438,0.005818,59453.0,59452.0,0.11499543]
[1724821564645,0.005818,59453.0,59452.0,0.61960243]
[1724821564850,0.005818,59453.0,59452.0,0.19273231]
[1724821565062,0.005818,59453.0,59452.0,0.52913731]
[1724821565488,0.000818,59453.0,59452.0,0.52913731]
[1724821565706,0.001818,59453.0,59452.0,0.52913731]
[1724821565910,0.001818,59453.0,59452.0,0.65212406]
[1724821566115,0.000818,59453.0,59452.0,0.65212406]
[1724821566336,0.003818,59453.0,59452.0,0.65212406]
[1724821566988,0.003818,59453.0,59452.0,0.31571906]
[1724821567188,0.003818,59453.0,59452.0,0.52913731]
[1724821573967,0.003818,59453.0,59452.0,0.19273231]
[1724821574884,0.003818,59453.0,59452.0,0.52913731]
[1724821578074,0.003818,59453.0,59452.0,1.43044731]
[1724821578418,0.003818,59453.0,59452.0,1.16694231]
[1724821578739,0.003818,59453.0,59452.0,1.31994285]
[1724821579064,0.000818,59453.0,59452.0,1.31994285]
[1724821579642,0.001818,59453.0,59452.0,1.31994285]
[1724821580571,0.001818,59453.0,59452.0,1.24704285]
[1724821580774,0.001818,59453.0,59452.0,1.01854285]
[1724821580990,0.001818,59453.0,59452.0,0.02453031]
[1724821580991,0.169618,59453.0,59452.0,0.02453031]
[1724821581192,0.169618,59453.0,59451.0,0.168205]
[1724821582317,0.168618,59453.0,59451.0,0.168205]
[1724821582520,0.174618,59453.0,59451.0,0.168205]
[1724821582719,0.174618,59453.0,59452.0,0.05923196]
[1724821583771,0.168618,59453.0,59452.0,0.05923196]
[1724821584195,0.174618,59453.0,59452.0,0.05923196]
[1724821584597,0.174618,59453.0,59451.0,0.168205]
[1724821585246,0.174618,59453.0,59450.0,0.02409245]
[1724821585484,0.1731,59457.0,59450.0,0.57570845]
[1724821585707,0.1731,59457.0,59451.0,0.168205]
[1724821585884,0.00537364,59452.0,59451.0,0.168205]
[1724821586088,0.1731,59457.0,59451.0,0.168205]
[1724821586089,0.005,59453.0,59451.0,0.168205]
[1724821586294,0.000818,59453.0,59451.0,0.168205]
[1724821586649,0.02719791,59453.0,59450.0,0.2152]
[1724821587024,0.02719791,59453.0,59450.0,0.383408]
[1724821587227,0.02919791,59453.0,59451.0,0.12488352]
[1724821587432,0.02719791,59453.0,59451.0,0.12488352]
[1724821588783,0.03219791,59453.0,59451.0,0.12488352]
[1724821589434,0.03519791,59453.0,59451.0,0.12488352]
[1724821590340,0.02719791,59453.0,59451.0,0.12488352]
[1724821590547,0.03019791,59453.0,59452.0,0.04150658]
[1724821591858,0.02719791,59453.0,59452.0,0.04150658]
[1724821592241,0.03119791,59453.0,59452.0,0.04150658]
[1724821594106,0.03099545,59453.0,59452.0,0.04150658]
[1724821598287,0.03099545,59453.0,59452.0,0.04240638]
[1724821600924,0.0363723,59453.0,59452.0,0.04240638]
[1724821601193,0.03099545,59453.0,59452.0,0.04240638]
[1724821601523,0.0363723,59453.0,59452.0,0.04240638]
[1724821602153,0.22485784,59465.0,59457.0,0.173186]
[1724821602334,0.04985784,59464.0,59462.0,0.11760823]
[1724821602737,0.175,59465.0,59459.0,0.11760823]
[1724821602738,0.22485784,59465.0,59459.0,0.11760823]
[1724821602921,0.04985784,59464.0,59459.0,0.11760823]
[1724821603371,0.175,59465.0,59459.0,0.11760823]
[1724821603372,0.04985784,59463.0,59459.0,0.11760823]
[1724821603807,0.32791569,59460.0,59452.0,0.04240638]
[1724821604024,0.22087127,59459.0,59457.0,0.001]
[1724821604466,0.04997307,59458.0,59457.0,0.001]
[1724821605240,0.02637966,59458.0,59457.0,0.001]
[1724821605402,0.10133927,59458.0,59457.0,0.001]
[1724821605614,0.10133927,59458.0,59452.0,0.02515184]
[1724821605615,0.07635563,59458.0,59452.0,0.02515184]
[1724821605817,0.04997597,59457.0,59453.0,0.06592854]
[1724821607155,0.05597597,59457.0,59453.0,0.06692854]
[1724821607363,0.04997597,59457.0,59453.0,0.06592854]
[1724821607576,0.04997597,59456.0,59453.0,0.06592854]
[1724821607788,0.04997597,59457.0,59454.0,0.02159639]
[1724821607993,0.02637966,59458.0,59454.0,0.02159639]
[1724821608276,0.07635563,59458.0,59454.0,0.02159639]
[1724821608483,0.04997597,59457.0,59454.0,0.02159639]
[1724821608685,0.07635563,59458.0,59455.0,0.02375603]
[1724821608893,0.007,59457.0,59455.0,0.02375603]
[1724821609106,0.05697597,59457.0,59455.0,0.02375603]
[1724821609329,0.007,59457.0,59455.0,0.02375603]
[1724821609535,0.05697597,59457.0,59456.0,0.01148364]
[1724821609753,0.04997597,59457.0,59456.0,0.01148364]
[1724821609956,0.00520204,59457.0,59456.0,0.01148364]
[1724821610785,0.01220204,59457.0,59456.0,0.01148364]
[1724821611005,0.27198236,59457.0,59456.0,0.01148364]
[1724821611211,0.43718236,59457.0,59456.0,0.01148364]
[1724821611423,0.46217253,59457.0,59456.0,0.01148364]
[1724821611648,0.46217253,59457.0,59453.0,0.06592854]
[1724821611904,0.04997619,59455.0,59453.0,0.06592854]
[1724821612349,0.04997619,59454.0,59453.0,0.06592854]
[1724821612576,0.05517823,59454.0,59453.0,0.06592854]
[1724821612793,0.00520204,59454.0,59453.0,0.06592854]
[1724821613464,0.05517627,59454.0,59453.0,0.06592854]
[1724821614360,0.05517627,59454.0,59452.0,0.02515184]
[1724821615040,0.00520204,59454.0,59452.0,0.02515184]
[1724821615277,0.05516555,59454.0,59452.0,0.02515184]
[1724821615502,0.06616555,59454.0,59452.0,0.02515184]
[1724821615802,0.05516555,59454.0,59452.0,0.02515184]
[1724821616023,0.06616555,59454.0,59452.0,0.02515184]
[1724821618098,0.07494526,59453.0,59452.0,0.02515184]
[1724821618326,0.45574526,59453.0,59452.0,0.02515184]
[1724821618891,0.4609473,59453.0,59452.0,0.02515184]
[1724821619284,0.4699473,59453.0,59452.0,0.02515184]
[1724821619535,0.4609473,59453.0,59452.0,0.02515184]
[1724821619916,0.4689473,59453.0,59452.0,0.02515184]
[1724821620327,0.4689473,59453.0,59452.0,0.15476702]
[1724821621152,0.54526091,59453.0,59452.0,0.02515184]
[1724821621413,0.42035214,59453.0,59452.0,0.02515184]
[1724821622237,0.41235214,59453.0,59452.0,0.02515184]
[1724821622445,0.42335214,59453.0,59452.0,0.02515184]
[1724821623445,0.52318722,59453.0,59452.0,0.02515184]
[1724821624084,0.42335214,59453.0,59452.0,0.02515184]
[1724821624279,0.49822457,59453.0,59452.0,0.02515184]
[1724821624503,0.49683712,59453.0,59452.0,0.02515184]
[1724821624696,0.52318802,59453.0,59452.0,0.02515184]
[1724821627190,0.42335294,59453.0,59452.0,0.02515184]
[1724821628645,0.42335294,59453.0,59452.0,0.03943044]
[1724821629183,0.4718563,59453.0,59452.0,0.03943044]
[1724821629709,0.4718563,59453.0,59452.0,0.02515184]
[1724821633163,0.47184259,59453.0,59452.0,0.02515184]
[1724821634191,0.47266059,59453.0,59452.0,0.02515184]
[1724821637433,0.4988092,59453.0,59452.0,0.02515184]
[1724821638246,0.49880549,59453.0,59452.0,0.02515184]
[1724821641607,0.42396865,59453.0,59452.0,0.02515184]
[1724821641807,0.52375111,59453.0,59452.0,0.02515184]
[1724821643099,0.52379533,59453.0,59452.0,0.02515184]
[1724821646388,0.01702004,59453.0,59452.0,0.14278599]
[1724821646596,0.01702004,59453.0,59452.0,0.20190579]
[1724821650330,0.01702004,59453.0,59452.0,0.53831079]
[1724821650540,0.01702004,59453.0,59452.0,0.37010779]
[1724821650780,0.011818,59453.0,59452.0,0.92761279]
[1724821651012,0.011818,59453.0,59452.0,0.59120779]
[1724821651489,0.011818,59453.0,59452.0,0.42300579]
[1724821651722,0.011818,59453.0,59452.0,0.20190579]
[1724821651966,0.011818,59453.0,59452.0,0.08427164]
[1724821652192,0.01683051,59453.0,59452.0,0.08427164]
[1724821652431,0.01683051,59453.0,59452.0,0.02515184]
[1724821652647,0.23273051,59453.0,59452.0,0.02515184]
[1724821652849,0.28268092,59453.0,59452.0,0.02515184]
[1724821652965,0.30903091,59453.0,59452.0,0.02515184]
[1724821653604,0.4246805,59453.0,59452.0,0.02515184]
[1724821654484,0.49960612,59453.0,59452.0,0.02515184]
[1724821657502,0.4246805,59453.0,59452.0,0.02515184]
[1724821662471,0.52464594,59453.0,59452.0,0.02515184]
[1724821664512,0.4246805,59453.0,59452.0,0.02515184]
[1724821664872,0.4196805,59453.0,59452.0,0.02515184]
[1724821666341,0.51965376,59453.0,59452.0,0.02515184]
[1724821666926,0.4196805,59453.0,59452.0,0.02515184]
[1724821667126,0.51964021,59453.0,59452.0,0.02515184]
[1724821667528,0.4196805,59453.0,59452.0,0.02515184]
[1724821667734,0.51964019,59453.0,59452.0,0.02515184]
[1724821670001,0.4196805,59453.0,59452.0,0.02515184]
[1724821670207,0.4196805,59453.0,59452.0,0.03943044]
[1724821671170,0.39333051,59453.0,59452.0,0.03943044]
[1724821672548,0.51964723,59453.0,59452.0,0.03943044]
[1724821673152,0.39333051,59453.0,59452.0,0.03943044]
[1724821674708,0.01183051,59453.0,59452.0,0.15706459]
[1724821674925,0.06181813,59453.0,59452.0,0.61436659]
[1724821675063,0.01183051,59453.0,59452.0,0.61436659]
[1724821675467,0.006818,59453.0,59452.0,0.61436659]
[1724821675701,0.01164834,59453.0,59452.0,0.15706459]
[1724821675902,0.01164834,59453.0,59452.0,0.03943044]
[1724821675903,0.18384834,59453.0,59452.0,0.03943044]
[1724821677082,0.18384834,59453.0,59452.0,0.20763244]
[1724821677259,0.01164834,59453.0,59452.0,0.32526659]
[1724821678240,0.01164834,59453.0,59452.0,0.66167159]
[1724821679425,0.01164834,59453.0,59452.0,1.27367659]
[1724821679617,0.01164834,59453.0,59452.0,2.54467659]
[1724821679829,0.006818,59453.0,59452.0,2.54467659]
[1724821680656,0.184718,59453.0,59452.0,1.29615184]
[1724821680800,0.1895607,59453.0,59452.0,1.80075884]
[1724821681008,0.184718,59453.0,59452.0,1.46435384]
[1724821681388,0.20232758,59453.0,59452.0,1.46435384]
[1724821681585,0.20717028,59453.0,59452.0,1.63290548]
[1724821681791,0.20232758,59453.0,59452.0,1.63290548]
[1724821682597,0.20232758,59453.0,59452.0,1.96931048]
[1724821683203,0.20232758,59453.0,59452.0,1.46470348]
[1724821683417,0.20232758,59453.0,59452.0,1.63290548]
[1724821683610,0.20717028,59453.0,59452.0,1.63290548]
[1724821685654,0.20717028,59453.0,59452.0,0.36190548]
[1724821692844,0.20717028,59453.0,59452.0,0.69831048]
[1724821693427,0.02927028,59453.0,59452.0,0.69831048]
[1724821694390,0.02927028,59453.0,59452.0,0.91931048]
[1724821694811,0.02442758,59453.0,59452.0,0.91931048]
[1724821695704,0.02442758,59453.0,59452.0,1.25571548]
[1724821696112,0.02442758,59453.0,59452.0,1.59212048]
[1724821697504,0.02442758,59453.0,59452.0,2.86312048]
[1724821697747,0.02442758,59453.0,59452.0,3.20452548]
[1724821697970,0.02442758,59453.0,59452.0,3.28992548]
[1724821698175,0.006818,59453.0,59452.0,3.28992548]
[1724821698826,0.000818,59453.0,59452.0,3.28992548]